{"text_format":"1","workbook":"xlsx","n_sheets":3,"sheets":["Бланк Методички","Обработка результатов","Печать"],"not_rendered":{"charts":0,"images":1,"macros":1,"external_links":0,"defined_names":0,"comments":0,"pivot_tables":0},"unopened":[],"bounds":{"document_bytes":16777216,"sheet_cells":100000,"rows_first":2000,"rows_last":500,"rows_between":2000,"halvings":0,"cell_chars":16384,"cell_head_chars":4096},"cells_cut":0,"cells_raw":0,"read":"whole","date_system":"1900"}

{"sheet":"Бланк Методички","index":0,"n_rows":50,"n_cols":34,"rows_kept":50,"cut":false,"hidden":false,"merged":[[2,15,2,18],[1,10,1,11],[1,12,1,14],[1,0,1,2],[1,3,1,8],[2,0,2,2],[2,3,2,8],[14,1,14,10],[15,1,15,10],[16,1,16,10],[4,0,7,14],[12,1,12,10],[11,1,11,10],[10,1,10,10],[13,1,13,10],[22,1,22,10],[47,1,47,10],[48,1,48,10],[49,1,49,10],[38,1,38,10],[39,1,39,10],[40,1,40,10],[36,1,36,10],[37,1,37,10],[26,1,26,10],[27,1,27,10],[28,1,28,10],[29,1,29,10],[23,1,23,10],[24,1,24,10],[25,1,25,10],[42,1,42,10],[43,1,43,10],[44,1,44,10],[45,1,45,10],[46,1,46,10],[41,1,41,10],[30,1,30,10],[31,1,31,10],[32,1,32,10],[33,1,33,10],[34,1,34,10],[35,1,35,10],[17,1,17,10],[18,1,18,10],[19,1,19,10],[20,1,20,10],[21,1,21,10]]}
[null,null,null,null,null,null,null,null,null,null,null,null,null,null,null,null,null,null,null,null,null,null,null,null,null,null,null,null,null,null,null,null,10,"5 А"]
["Фамилия, имя",null,null,null,null,null,null,null,null,null,"Класс",null,null,null,null,null,null,null,null,null,null,null,null,null,null,null,null,null,null,null,null,null,11,"5 Б"]
["Возраст",null,null,null,null,null,null,null,null,null,null,null,null,null,null,null,null,null,null,null,null,null,null,null,null,null,null,null,null,null,null,null,12,"5 В"]
[null,null,null,null,null,null,null,null,null,null,null,null,null,null,null,null,null,null,null,null,null,null,null,null,null,null,null,null,null,null,null,null,13]
["Тип мышления – индивидуальный способ преобразования информации. Зная свой тип мышления, можно прогнозировать успешность в конкретных видах профессиональной деятельности.\nЕсли согласны с высказыванием, в бланке поставьте «+», если нет «–». ",null,null,null,null,null,null,null,null,null,null,null,null,null,null,null,null,null,null,null,null,null,null,null,null,null,null,null,null,null,null,"Мальчик",14]
[null,null,null,null,null,null,null,null,null,null,null,null,null,null,null,null,null,null,null,null,null,null,null,null,null,null,null,null,null,null,null,"Девочка",15]
[null,null,null,null,null,null,null,null,null,null,null,null,null,null,null,null,null,null,null,null,null,null,null,null,null,null,null,null,null,null,null,null,16]
[]
[]
[]
[1,"Мне легче что-либо сделать самому, чем объяснить другому.",null,null,null,null,null,null,null,null,null,null,null,null,null,null,null,null,null,"+"]
[2,"Мне интересно составлять компьютерные программы.",null,null,null,null,null,null,null,null,null,null,null,null,null,null,null,null,null,"-"]
[3,"Я люблю читать книги."]
[4,"Мне нравится живопись, скульптура, архитектура."]
[5,"Даже в отлаженном деле я стараюсь что-то улучшить."]
[6,"Я лучше понимаю, если мне объясняют на предметах или рисунках."]
[7,"Я люблю играть в шахматы."]
[8,"Я легко излагаю свои мысли как в устной, так и в письменной форме."]
[9,"Когда я читаю книгу, я четко вижу ее героев и описываемые события."]
[10,"Я предпочитаю самостоятельно планировать свою работу."]
[11,"Мне нравится все делать своими руками."]
[12,"В детстве я создавал(а) свой шифр для переписки с друзьями."]
[13,"Я придаю большое значение сказанному слову."]
[14,"Знакомые мелодии вызывают у меня в голове определенные картины."]
[15,"Разнообразные увлечения делают жизнь человека богаче и ярче."]
[16,"При решении задачи мне легче идти методом проб и ошибок."]
[17,"Мне интересно разбираться в природе физических явлений."]
[18,"Мне интересна работа ведущего теле-радиопрограмм, журналиста."]
[19,"Мне легко представить предмет или животное, которых нет в природе."]
[20,"Мне больше нравится процесс деятельности, чем сам результат."]
[21,"Мне нравилось в детстве собирать конструктор из деталей, лего."]
[22,"Я предпочитаю точные науки (математику, физику)."]
[23,"Меня восхищает точность и глубина некоторых стихов."]
[24,"Знакомый запах вызывает в моей памяти прошлые события."]
[25,"Я не хотел(а) бы подчинять свою жизнь определенной системе."]
[26,"Когда я слышу музыку, мне хочется танцевать."]
[27,"Я понимаю красоту математических формул."]
[28,"Мне легко говорить перед любой аудиторией."]
[29,"Я люблю посещать выставки, спектакли, концерты."]
[30,"Я сомневаюсь даже в том, что для других очевидно."]
[31,"Я люблю заниматься рукоделием, что-то мастерить."]
[32,"Мне интересно было бы расшифровать древние тайнописи."]
[33,"Я легко усваиваю грамматические конструкции языка."]
[34,"Я согласен с Ф.М. Достоевским, что красота спасет мир."]
[35,"Не люблю ходить одним и тем же путем."]
[36,"Истинно только то, что можно потрогать руками."]
[37,"Я легко запоминаю формулы, символы, условные обозначения."]
[38,"Друзья любят слушать, когда я им что-то рассказываю."]
[39,"Я легко могу представить в образах содержание рассказа или фильма."]
[40,"Я не могу успокоиться, пока не доведу свою работу до совершенства."]

{"sheet":"Обработка результатов","index":1,"n_rows":15,"n_cols":49,"rows_kept":15,"cut":false,"hidden":false,"merged":[[1,1,1,8],[9,1,9,8],[14,10,14,13],[8,0,8,13],[2,10,2,11],[2,12,2,17],[9,10,9,13],[3,10,3,11],[3,12,3,17],[10,10,10,13],[11,10,11,13],[12,10,12,13],[13,10,13,13]]}
[]
["Шкала","Пункты, номер"]
["Предметно-действенное",1,6,11,16,21,26,31,36,null,"Ф.И.О.",null,{"$f":"PROPER('Бланк Методички'!D2)","v":""}]
["Абстрактно-символическое",2,7,12,17,22,27,32,37,null,"Класс",null,{"$f":"'Бланк Методички'!M2","v":0}]
["Словесно-логическое",3,8,13,18,23,28,33,38]
["Наглядно-образное",4,9,14,19,24,29,34,39]
["Креативность (творческое)",5,10,15,20,25,30,35,40]
[]
["Результаты"]
["Шкала","Ответы",null,null,null,null,null,null,null,"Итого","Уровень",null,null,null,null,null,null,null,null,null,null,null,null,null,null,null,null,null,null,null,null,null,null,null,null,null,null,null,null,null,null,null,null,null,null,{"$f":"'Бланк Методички'!L24","v":0},{"$f":"'Бланк Методички'!L40","v":0},{"$f":"'Бланк Методички'!L48","v":0}]
["Предметно-действенное",{"$f":"'Бланк Методички'!L11","v":0},{"$f":"'Бланк Методички'!L16","v":0},{"$f":"'Бланк Методички'!L21","v":0},{"$f":"'Бланк Методички'!L26","v":0},{"$f":"'Бланк Методички'!L32","v":0},{"$f":"'Бланк Методички'!L36","v":0},{"$f":"'Бланк Методички'!L41","v":0},{"$f":"'Бланк Методички'!L46","v":0},{"$f":"COUNTIF(B11:I11,\"+\")","v":0},{"$f":"IF(AND(J11>=0,J11<=2),\"Низкий\",IF(AND(J11>=3,J11<=5),\"Средний\",IF(AND(J11>=6,J11<=8),\"Высокий\",)))","v":"Низкий"},null,null,null,null,null,null,null,null,null,null,null,null,null,null,null,null,null,null,null,null,null,null,null,null,null,null,null,null,null,null,null,null,null,null,{"$f":"'Бланк Методички'!L14","v":0},{"$f":"'Бланк Методички'!L30","v":0},{"$f":"'Бланк Методички'!L42","v":0}]
["Абстрактно-символическое",{"$f":"'Бланк Методички'!L12","v":0},{"$f":"'Бланк Методички'!L17","v":0},{"$f":"'Бланк Методички'!L22","v":0},{"$f":"'Бланк Методички'!L27","v":0},{"$f":"'Бланк Методички'!L33","v":0},{"$f":"'Бланк Методички'!L37","v":0},{"$f":"'Бланк Методички'!L42","v":0},{"$f":"'Бланк Методички'!L47","v":0},{"$f":"COUNTIF(B12:I12,\"+\")","v":0},{"$f":"IF(AND(J12>=0,J12<=2),\"Низкий\",IF(AND(J12>=3,J12<=5),\"Средний\",IF(AND(J12>=6,J12<=8),\"Высокий\",)))","v":"Низкий"},null,null,null,null,null,null,null,null,null,null,null,null,null,null,null,null,null,null,null,null,null,null,null,null,null,null,null,null,null,null,null,null,null,null,{"$f":"'Бланк Методички'!L11","v":0},{"$f":"'Бланк Методички'!L19","v":0},{"$f":"'Бланк Методички'!L35","v":0},{"$f":"'Бланк Методички'!L43","v":0}]
["Словесно-логическое",{"$f":"'Бланк Методички'!L13","v":0},{"$f":"'Бланк Методички'!L18","v":0},{"$f":"'Бланк Методички'!L23","v":0},{"$f":"'Бланк Методички'!L28","v":0},{"$f":"'Бланк Методички'!L34","v":0},{"$f":"'Бланк Методички'!L38","v":0},{"$f":"'Бланк Методички'!L43","v":0},{"$f":"'Бланк Методички'!L48","v":0},{"$f":"COUNTIF(B13:I13,\"+\")","v":0},{"$f":"IF(AND(J13>=0,J13<=2),\"Низкий\",IF(AND(J13>=3,J13<=5),\"Средний\",IF(AND(J13>=6,J13<=8),\"Высокий\",)))","v":"Низкий"}]
["Наглядно-образное",{"$f":"'Бланк Методички'!L14","v":0},{"$f":"'Бланк Методички'!L19","v":0},{"$f":"'Бланк Методички'!L24","v":0},{"$f":"'Бланк Методички'!L29","v":0},{"$f":"'Бланк Методички'!L35","v":0},{"$f":"'Бланк Методички'!L39","v":0},{"$f":"'Бланк Методички'!L44","v":0},{"$f":"'Бланк Методички'!L49","v":0},{"$f":"COUNTIF(B14:I14,\"+\")","v":0},{"$f":"IF(AND(J14>=0,J14<=2),\"Низкий\",IF(AND(J14>=3,J14<=5),\"Средний\",IF(AND(J14>=6,J14<=8),\"Высокий\",)))","v":"Низкий"}]
["Креативность (творческое)",{"$f":"'Бланк Методички'!L15","v":0},{"$f":"'Бланк Методички'!L20","v":0},{"$f":"'Бланк Методички'!L25","v":0},{"$f":"'Бланк Методички'!L30","v":0},{"$f":"'Бланк Методички'!L36","v":0},{"$f":"'Бланк Методички'!L40","v":0},{"$f":"'Бланк Методички'!L45","v":0},{"$f":"'Бланк Методички'!L50","v":0},{"$f":"COUNTIF(B15:I15,\"+\")","v":0},{"$f":"IF(AND(J15>=0,J15<=2),\"Низкий\",IF(AND(J15>=3,J15<=5),\"Средний\",IF(AND(J15>=6,J15<=8),\"Высокий\",)))","v":"Низкий"}]

{"sheet":"Печать","index":2,"n_rows":40,"n_cols":8,"rows_kept":40,"cut":false,"hidden":false,"merged":[[39,5,39,8],[10,0,10,4],[10,6,10,8],[27,0,27,8],[28,0,28,8],[29,0,29,8],[22,0,22,8],[23,0,23,8],[24,0,24,8],[25,0,25,8],[26,0,26,8],[17,0,17,8],[18,0,18,8],[19,0,19,8],[20,0,20,8],[21,0,21,8],[13,0,13,8],[30,0,30,8],[36,0,36,8],[31,0,31,8],[32,0,32,8],[33,0,33,8],[34,0,34,8],[35,0,35,8],[14,0,14,8],[15,0,15,8],[16,0,16,8],[12,0,12,8],[11,0,11,8],[0,0,0,8],[2,7,2,8],[3,7,3,8],[2,1,2,5],[3,1,3,5],[6,6,6,8],[7,6,7,8],[8,6,8,8],[9,6,9,8],[5,6,5,8],[5,0,5,4],[6,0,6,4],[7,0,7,4],[8,0,8,4],[9,0,9,4]]}
["Методика «Тип мышления»"]
[]
["ФИО",{"$f":"PROPER('Бланк Методички'!D2)","v":""},null,null,null,null,"Класс",{"$f":"'Бланк Методички'!M2","v":0}]
["Возраст",{"$f":"CONCATENATE('Бланк Методички'!D3, \" лет\")","v":" лет"},null,null,null,null,"Дата",{"$f":"TODAY()","v":"2018-03-09"}]
[]
["Шкала",null,null,null,null,"Баллы","Уровень"]
["Предметно-действенное",null,null,null,null,{"$f":"'Обработка результатов'!J11","v":0},{"$f":"'Обработка результатов'!K11","v":"Низкий"}]
["Абстрактно-символическое",null,null,null,null,{"$f":"'Обработка результатов'!J12","v":0},{"$f":"'Обработка результатов'!K12","v":"Низкий"}]
["Словесно-логическое",null,null,null,null,{"$f":"'Обработка результатов'!J13","v":0},{"$f":"'Обработка результатов'!K13","v":"Низкий"}]
["Наглядно-образное",null,null,null,null,{"$f":"'Обработка результатов'!J14","v":0},{"$f":"'Обработка результатов'!K14","v":"Низкий"}]
["Креативность (творческое)",null,null,null,null,{"$f":"'Обработка результатов'!J15","v":0},{"$f":"'Обработка результатов'!K15","v":"Низкий"}]
[]
[]
[]
[]
[]
[]
[]
[]
[]
[]
[]
[]
[]
[]
[]
[]
[]
[]
[]
[]
[]
[]
[]
[]
[]
[]
[]
[]
[null,null,null,null,null,"http://eschool.by/courses/psy"]